bitfinex/quotes_BTCUSD_20241009
["timestamp","ask_amount","ask_price","bid_price","bid_amount"]
[1728502911794,0.17185342,61136.0,61135.0,0.001636]
[1728502911795,0.00328342,61136.0,61135.0,0.001636]
[1728502912495,0.00328342,61136.0,61135.0,0.165208]
[1728502912729,0.163566,61138.0,61135.0,0.165208]
[1728502912961,0.00328342,61137.0,61135.0,0.165208]
[1728502913200,0.003,61136.0,61135.0,0.165208]
[1728502913884,0.006,61136.0,61135.0,0.165208]
[1728502914367,0.003,61136.0,61135.0,0.165208]
[1728502914831,0.007,61136.0,61135.0,0.165208]
[1728502915539,0.007,61136.0,61135.0,0.84444482]
[1728502915776,0.007,61136.0,61135.0,0.59921655]
[1728502915970,0.007,61136.0,61135.0,0.40734564]
[1728502916261,0.004,61136.0,61135.0,0.40734564]
[1728502916723,0.005,61136.0,61135.0,0.40734564]
[1728502917184,0.004,61136.0,61135.0,0.40734564]
[1728502917420,0.004,61136.0,61135.0,0.41134564]
[1728502917652,0.000818,61140.0,61139.0,0.163561]
[1728502918324,0.000818,61140.0,61136.0,0.490704]
[1728502918353,0.164378,61140.0,61137.0,0.163565]
[1728502918599,0.00328342,61139.0,61137.0,0.163565]
[1728502918814,0.00328342,61139.0,61138.0,0.163564]
[1728502919298,0.16684542,61139.0,61136.0,0.163568]
[1728502920753,0.00428342,61139.0,61137.0,0.163566]
[1728502921237,0.00828342,61139.0,61137.0,0.163566]
[1728502921479,0.17029547,61139.0,61136.0,0.163568]
[1728502921718,0.17129547,61139.0,61136.0,0.163568]
[1728502921954,0.17129547,61139.0,61137.0,0.163567]
[1728502921955,0.00273447,61139.0,61137.0,0.163567]
[1728502922197,0.00573447,61139.0,61137.0,0.163567]
[1728502922952,0.003,61139.0,61138.0,0.434964]
[1728502923188,0.005,61139.0,61138.0,0.240264]
[1728502923662,0.003,61139.0,61138.0,0.240264]
[1728502923903,0.004,61139.0,61138.0,0.240264]
[1728502924136,0.000818,61140.0,61139.0,0.163561]
[1728502925528,0.000818,61140.0,61139.0,0.164561]
[1728502926011,0.164377,61140.0,61139.0,0.001]
[1728502926233,0.247477,61140.0,61139.0,0.001]
[1728502926454,0.000818,61140.0,61139.0,0.001]
[1728502926693,0.00255247,61140.0,61139.0,0.001]
[1728502927135,0.16611147,61140.0,61137.0,0.163566]
[1728502927810,0.163564,61138.0,61135.0,0.165208]
[1728502928005,0.33467247,61140.0,61135.0,0.001636]
[1728502928006,0.163569,61136.0,61135.0,0.001636]
[1728502928232,0.16530347,61136.0,61135.0,0.001636]
[1728502929605,0.60135242,61136.0,61135.0,0.001636]
[1728502929845,0.81124871,61136.0,61135.0,0.001636]
[1728502930080,0.88660427,61136.0,61135.0,0.001636]
[1728502930297,0.91625574,61136.0,61135.0,0.002636]
[1728502930551,0.81841458,61136.0,61135.0,0.002636]
[1728502930793,0.80841458,61136.0,61135.0,0.001636]
[1728502931038,0.81841458,61136.0,61135.0,0.003636]
[1728502931278,0.81341458,61136.0,61135.0,0.002636]
[1728502931516,0.76566563,61136.0,61135.0,0.003636]
[1728502932452,0.70470664,61136.0,61135.0,0.001636]
[1728502932679,0.71470664,61136.0,61135.0,0.003636]
[1728502933122,0.70970664,61136.0,61135.0,0.002636]
[1728502933577,0.71470664,61136.0,61135.0,0.003636]
[1728502934018,0.70470664,61136.0,61135.0,0.001636]
[1728502934243,0.74033579,61136.0,61135.0,0.003636]
[1728502934468,0.73533579,61136.0,61135.0,0.002636]
[1728502934872,0.74033579,61136.0,61135.0,0.003636]
[1728502935673,0.77149696,61136.0,61135.0,0.003636]
[1728502936519,0.74033579,61136.0,61135.0,0.003636]
[1728502938979,0.72447364,61136.0,61135.0,0.003636]
[1728502939421,0.79784766,61136.0,61135.0,0.003636]
[1728502939642,0.79284766,61136.0,61135.0,0.002636]
[1728502940346,0.79284766,61136.0,61135.0,0.003636]
[1728502940347,0.74772514,61136.0,61135.0,0.003636]
[1728502940587,0.74772514,61136.0,61135.0,0.002636]
[1728502940810,0.74272514,61136.0,61135.0,0.001636]
[1728502941049,0.75272514,61136.0,61135.0,0.003636]
[1728502941280,0.74772514,61136.0,61135.0,0.002636]
[1728502941769,0.74272514,61136.0,61135.0,0.001636]
[1728502942017,0.74772514,61136.0,61135.0,0.002636]
[1728502942436,0.69884449,61136.0,61135.0,0.002636]
[1728502942914,0.70384449,61136.0,61135.0,0.003636]
[1728502943382,0.87528067,61136.0,61135.0,0.001636]
[1728502943664,0.88028067,61136.0,61135.0,0.001636]
[1728502943900,0.72447406,61136.0,61135.0,0.002636]
[1728502944130,0.72947406,61136.0,61135.0,0.003636]
[1728502950291,0.70384449,61136.0,61135.0,0.003636]
[1728502952155,0.50914449,61136.0,61135.0,0.003636]
[1728502953086,0.16270685,61136.0,61135.0,0.003636]
[1728502953302,0.015,61136.0,61135.0,0.243508]
[1728502954012,0.005,61136.0,61135.0,0.078936]
[1728502954227,0.00173447,61138.0,61135.0,0.077936]
[1728502954469,0.005,61136.0,61135.0,0.077936]
[1728502954690,0.163567,61137.0,61135.0,0.077936]
[1728502954900,0.01,61136.0,61135.0,0.077936]
[1728502956168,0.00173447,61138.0,61135.0,0.077936]
[1728502956420,0.163567,61137.0,61135.0,0.077936]
[1728502956632,0.005,61136.0,61135.0,0.077936]
[1728502957071,0.163567,61137.0,61135.0,0.077936]
[1728502957718,0.163569,61136.0,61135.0,0.077936]
[1728502957930,0.168569,61136.0,61135.0,0.077936]
[1728502958363,0.173569,61136.0,61135.0,0.077936]
[1728502959015,0.01,61136.0,61135.0,0.241508]
[1728502959267,0.01,61136.0,61135.0,0.077936]
[1728502959902,0.173569,61136.0,61135.0,0.077936]
[1728502960119,0.168569,61136.0,61135.0,0.077936]
[1728502960366,0.173569,61136.0,61135.0,0.077936]
[1728502960574,0.17530347,61136.0,61135.0,0.077936]
[1728502960850,0.17530347,61136.0,61135.0,0.001636]
[1728502961088,0.36917438,61136.0,61135.0,0.001636]
[1728502961338,0.52827755,61136.0,61135.0,0.001636]
[1728502964084,0.63327755,61136.0,61135.0,0.001636]
[1728502964327,0.82137755,61136.0,61135.0,0.001636]
[1728502964560,0.81637755,61136.0,61135.0,0.001636]
[1728502964761,0.9665067,61136.0,61135.0,0.001636]
[1728502964986,0.99213654,61136.0,61135.0,0.001636]
[1728502965242,1.04297742,61136.0,61135.0,0.001636]
[1728502965444,1.0429767,61136.0,61135.0,0.001636]
[1728502965669,0.99213654,61136.0,61135.0,0.001636]
[1728502965958,0.348385,61130.0,61129.0,0.001636]
[1728502966183,0.88199355,61130.0,61129.0,0.001636]
[1728502966407,0.93282471,61130.0,61129.0,0.001636]
[1728502967099,0.89199355,61130.0,61129.0,0.002636]
[1728502967382,0.88199355,61130.0,61129.0,0.001636]
[1728502967580,0.89599355,61130.0,61129.0,0.002636]
[1728502967798,0.90999355,61130.0,61129.0,0.003636]
[1728502968264,1.07080016,61130.0,61129.0,0.003636]
[1728502969479,0.64429355,61130.0,61129.0,0.003636]
[1728502972203,0.64429355,61130.0,61122.0,0.24686227]
[1728502972204,0.327199,61125.0,61122.0,0.24686227]
[1728502972427,0.35547491,61123.0,61122.0,0.24686227]
[1728502972652,0.51631255,61123.0,61122.0,0.24686227]
[1728502972872,0.51631255,61123.0,61122.0,0.001634]
[1728502973532,0.51631255,61123.0,61122.0,0.002634]
[1728502973755,0.51631255,61123.0,61122.0,0.003634]
[1728502973756,0.54194745,61123.0,61122.0,0.003634]
[1728502973977,0.55094745,61123.0,61122.0,0.002634]
[1728502974205,0.55894745,61123.0,61122.0,0.003634]
[1728502980775,0.017,61123.0,61122.0,0.003634]
[1728502980999,0.017,61123.0,61122.0,0.428141]
[1728502981228,0.017,61123.0,61122.0,0.264534]
[1728502981462,0.017,61123.0,61122.0,0.428141]
[1728502983071,0.017,61123.0,61122.0,0.264534]
[1728502983307,0.01873447,61123.0,61122.0,0.428141]
[1728502984209,0.017,61123.0,61122.0,0.428141]
[1728502985601,0.017,61123.0,61122.0,0.59397864]
[1728502985826,0.017,61123.0,61122.0,0.59597864]
[1728502986074,0.017,61123.0,61122.0,0.69597864]
[1728502986324,0.009,61123.0,61122.0,0.69497864]
[1728502986561,0.009,61123.0,61122.0,0.71797864]
[1728502986787,0.000818,61136.0,61135.0,0.428172]
[1728502987018,0.000818,61136.0,61135.0,0.430172]
[1728502987273,0.000818,61136.0,61135.0,0.428172]
[1728502989122,0.003818,61136.0,61135.0,0.428172]
[1728502989856,0.006818,61136.0,61135.0,0.428172]
[1728502990080,0.006818,61136.0,61135.0,0.60445837]
[1728502990768,0.003818,61136.0,61135.0,0.60445837]
[1728502991230,0.000818,61136.0,61135.0,0.60445837]
[1728502991455,0.000818,61136.0,61135.0,0.60945837]
[1728502991683,0.000818,61136.0,61135.0,0.60445837]
[1728502992120,0.001818,61136.0,61135.0,0.61245837]
[1728502992836,0.001818,61136.0,61135.0,0.61645837]
[1728502993303,0.001818,61136.0,61135.0,0.61245837]
[1728502993550,0.001818,61136.0,61135.0,0.62045837]
[1728502993551,0.002818,61136.0,61135.0,0.62045837]
[1728502996135,0.002818,61136.0,61135.0,0.62700337]
[1728503004782,0.002818,61136.0,61135.0,0.72700337]
[1728503013687,0.002818,61136.0,61135.0,0.75000337]
[1728503015064,0.002818,61136.0,61135.0,0.72700337]
[1728503015398,0.002818,61136.0,61135.0,0.62500337]
[1728503015861,0.002818,61136.0,61135.0,0.62700337]
[1728503018018,0.002818,61136.0,61135.0,0.72700337]
[1728503023792,0.002818,61136.0,61135.0,0.53850337]
[1728503028769,0.002818,61136.0,61135.0,0.72050337]
[1728503029476,0.002818,61136.0,61135.0,0.76944879]
[1728503029699,0.002818,61136.0,61135.0,0.72050337]
[1728503031292,0.002818,61136.0,61135.0,0.81839421]
[1728503032224,0.002818,61136.0,61135.0,0.72050337]
[1728503033287,0.002818,61136.0,61135.0,0.84286692]
[1728503034833,0.002818,61136.0,61135.0,0.72050337]
[1728503036199,0.002818,61136.0,61135.0,0.84324349]
[1728503036423,0.002818,61136.0,61135.0,0.72050337]
[1728503037341,0.002818,61136.0,61135.0,0.84324237]
[1728503039126,0.002818,61136.0,61135.0,0.116]
[1728503039374,0.166387,61136.0,61135.0,0.116]
[1728503039630,0.00455247,61136.0,61135.0,0.116]
[1728503039864,0.16712147,61136.0,61135.0,0.108]
[1728503040333,0.16712147,61136.0,61135.0,0.117]
[1728503040334,0.16812147,61136.0,61135.0,0.117]
[1728503040862,0.16712147,61136.0,61135.0,0.109]
[1728503041104,0.16812147,61136.0,61135.0,0.116]
[1728503041334,0.16812147,61136.0,61135.0,0.109]
[1728503041564,0.16712147,61136.0,61135.0,0.1]
[1728503041785,0.16712147,61136.0,61135.0,0.102]
[1728503042033,0.32792808,61136.0,61135.0,0.102]
[1728503042267,0.165387,61136.0,61135.0,0.102]
[1728503042938,0.165387,61136.0,61135.0,0.101]
[1728503043153,0.001818,61136.0,61135.0,0.101]
[1728503043380,0.001818,61136.0,61135.0,0.264572]
[1728503043812,0.005818,61136.0,61135.0,0.264572]
[1728503044031,0.004818,61136.0,61135.0,0.263572]
[1728503044263,0.009818,61136.0,61135.0,0.263572]
[1728503044783,0.004818,61136.0,61135.0,0.263572]
[1728503044989,0.000818,61136.0,61135.0,0.264572]
[1728503045210,0.000818,61136.0,61135.0,0.263572]
[1728503045411,0.006818,61136.0,61135.0,0.264572]
[1728503045632,0.006818,61136.0,61135.0,0.266572]
[1728503045848,0.000818,61136.0,61135.0,0.265572]
[1728503046349,0.000818,61136.0,61135.0,0.267572]
[1728503052396,0.000818,61136.0,61135.0,0.269572]
[1728503052671,0.000818,61136.0,61135.0,0.345972]
[1728503054036,0.000818,61136.0,61135.0,0.343972]
[1728503054276,0.000818,61136.0,61135.0,0.267572]
[1728503055213,0.000818,61136.0,61135.0,0.269572]
[1728503056638,0.000818,61136.0,61135.0,0.267572]
[1728503061863,0.000818,61136.0,61135.0,0.263572]
[1728503062309,0.000818,61136.0,61135.0,0.265572]
[1728503062528,0.000818,61136.0,61135.0,0.263572]
[1728503067832,0.000818,61136.0,61135.0,0.265572]
[1728503068910,0.000818,61136.0,61135.0,0.263572]
[1728503070955,0.000818,61136.0,61135.0,0.1]
[1728503071173,0.28204516,61136.0,61135.0,0.1]
[1728503071404,0.239687,61136.0,61135.0,0.1]
[1728503071898,0.47438391,61136.0,61135.0,0.1]
[1728503073482,0.50001173,61136.0,61135.0,0.1]
[1728503073907,0.50801173,61136.0,61135.0,0.101]
[1728503074598,0.69945,61136.0,61135.0,0.101]
[1728503075238,0.70645,61136.0,61135.0,0.102]
[1728503075462,0.65545309,61136.0,61135.0,0.102]
[1728503078188,0.04144582,61136.0,61135.0,0.102]
[1728503078408,0.015818,61136.0,61135.0,0.265572]
[1728503078652,0.015818,61136.0,61135.0,0.347072]
[1728503078870,0.015818,61136.0,61135.0,0.345072]
[1728503079804,0.015818,61136.0,61135.0,0.347072]
[1728503082086,0.015818,61136.0,61135.0,0.3472037]
[1728503089426,0.015818,61136.0,61135.0,0.3452037]
[1728503098891,0.007818,61136.0,61135.0,0.3442037]
[1728503099116,0.010818,61136.0,61135.0,0.3442037]
[1728503099515,0.003818,61136.0,61135.0,0.3432037]
[1728503099753,0.006818,61136.0,61135.0,0.3432037]
[1728503100206,0.003818,61136.0,61135.0,0.3432037]
[1728503100479,0.000818,61136.0,61135.0,0.3432037]
[1728503100906,0.000818,61136.0,61135.0,0.3442037]
[1728503101169,0.000818,61136.0,61135.0,0.3462037]
[1728503101592,0.000818,61136.0,61135.0,0.2647037]
[1728503102314,0.000818,61136.0,61135.0,1.08270925]
[1728503102572,0.000818,61136.0,61135.0,0.83420975]
[1728503105191,0.002818,61136.0,61135.0,0.97513356]
[1728503105425,0.001818,61136.0,61135.0,0.84364134]
[1728503105923,0.000818,61136.0,61135.0,0.83264134]
[1728503106169,0.001818,61136.0,61135.0,0.84364134]
[1728503106441,0.001818,61136.0,61135.0,0.97414503]
[1728503106918,0.002818,61136.0,61135.0,0.98414503]
[1728503107156,0.001818,61136.0,61135.0,0.97414503]
[1728503107393,0.002818,61136.0,61135.0,0.98414503]
[1728503107632,0.002818,61136.0,61135.0,0.86170637]
[1728503108594,0.002818,61136.0,61135.0,0.95961648]
[1728503108843,0.002818,61136.0,61135.0,0.86670637]
[1728503112261,0.000818,61139.0,61138.0,0.7708431]
[1728503112497,0.000818,61139.0,61138.0,1.05393452]
[1728503113424,0.001818,61139.0,61138.0,0.94722374]
[1728503113647,0.002818,61139.0,61138.0,0.95622374]
[1728503114652,0.99268523,61147.0,61146.0,0.005]
[1728503114872,0.99268523,61147.0,61146.0,0.97763052]
[1728503115090,0.99268523,61147.0,61146.0,0.92875874]
[1728503115530,0.99268523,61147.0,61146.0,0.97761502]
[1728503116010,0.99268523,61147.0,61146.0,0.92875874]
[1728503116011,0.97136687,61147.0,61146.0,0.92875874]
[1728503116230,0.97236687,61147.0,61146.0,0.94175874]
[1728503116716,0.97236687,61147.0,61146.0,0.94275874]
[1728503116947,0.97136687,61147.0,61146.0,1.0264061]
[1728503117152,0.97336687,61147.0,61146.0,1.0544061]
[1728503117369,0.90795087,61147.0,61146.0,0.95675874]
[1728503117604,0.71170287,61147.0,61146.0,0.95675874]
[1728503118064,0.71170287,61147.0,61146.0,1.02996608]
[1728503118528,0.67899487,61147.0,61146.0,1.02994286]
[1728503118736,0.67899487,61147.0,61146.0,1.02994612]
[1728503118951,0.54816287,61147.0,61146.0,0.95675874]
[1728503119368,0.54816287,61147.0,61146.0,0.96722782]
[1728503119612,0.54816287,61147.0,61146.0,0.96522782]
[1728503120077,0.54816287,61147.0,61146.0,1.01400844]
[1728503120292,0.54816287,61147.0,61146.0,0.96522782]
[1728503121869,0.54816287,61147.0,61146.0,0.64594872]
[1728503122085,0.54816287,61147.0,61146.0,0.44954872]
[1728503122086,0.54898087,61147.0,61146.0,0.44954872]
[1728503122294,0.54898087,61147.0,61146.0,0.36784872]
[1728503123476,0.54698087,61147.0,61142.0,0.005]
[1728503123694,0.1912791,61145.0,61142.0,0.168553]
[1728503123916,0.1912791,61145.0,61143.0,0.163548]
[1728503124333,0.1912791,61145.0,61142.0,0.005]
[1728503124542,0.1912791,61145.0,61144.0,0.163548]
[1728503124810,0.0785,61144.0,61135.0,0.0001317]
[1728503125058,0.3548461,61137.0,61135.0,0.0001317]
[1728503125789,0.5454461,61137.0,61135.0,0.0001317]
[1728503126007,0.163569,61136.0,61135.0,0.0001317]
[1728503126226,0.16530347,61136.0,61135.0,0.0001317]
[1728503126893,0.32614111,61136.0,61135.0,0.0001317]
[1728503127154,0.163588,61129.0,61122.0,0.001634]
[1728503127400,0.327166,61131.0,61122.0,0.001634]
[1728503127401,0.3548831,61123.0,61122.0,0.001634]
[1728503127625,0.88722074,61123.0,61122.0,0.001634]
[1728503127859,0.69594164,61123.0,61122.0,0.001634]
[1728503128076,0.78722074,61123.0,61122.0,0.001634]
[1728503128738,0.6263831,61123.0,61122.0,0.001634]
[1728503129206,0.6263831,61123.0,61122.0,0.002634]
[1728503129490,0.6263831,61123.0,61122.0,0.001634]
[1728503129706,0.6343831,61123.0,61122.0,0.002634]
[1728503129932,0.6463831,61123.0,61122.0,0.003634]
[1728503131035,0.6463831,61123.0,61122.0,0.103634]
[1728503132330,0.02,61123.0,61122.0,0.103634]
[1728503133329,0.02,61123.0,61122.0,0.269241]
[1728503133742,0.0195,61123.0,61122.0,0.274241]
[1728503133954,0.0195,61123.0,61122.0,0.272241]
[1728503134167,0.0075,61123.0,61122.0,0.271241]
[1728503134809,0.0085,61123.0,61122.0,0.271241]
[1728503135018,0.001,61123.0,61122.0,0.270241]
[1728503135436,0.002,61123.0,61122.0,0.270241]
[1728503135938,0.00173447,61128.0,61122.0,0.106634]
[1728503136156,0.16532747,61128.0,61124.0,0.1636]
[1728503136625,0.163586,61130.0,61126.0,0.163596]
[1728503137262,0.1912791,61132.0,61125.0,0.327197]
[1728503137263,0.5184401,61132.0,61125.0,0.327197]
[1728503137472,0.16532347,61129.0,61125.0,0.163597]
[1728503137687,0.00173447,61129.0,61125.0,0.163596]
[1728503137891,0.00173447,61129.0,61123.0,0.327207]
[1728503138357,0.16532747,61128.0,61124.0,0.163599]
[1728503138573,0.16532747,61128.0,61122.0,0.106634]
[1728503138574,0.163597,61126.0,61122.0,0.106634]
[1728503138801,0.16532647,61128.0,61122.0,0.435843]
[1728503139006,0.00173447,61128.0,61124.0,0.1636]
[1728503139235,0.163594,61127.0,61124.0,0.1636]
[1728503139446,0.00173447,61128.0,61124.0,0.1636]
[1728503139682,0.16532547,61128.0,61124.0,0.1636]
[1728503140117,0.00173447,61128.0,61123.0,0.327205]
[1728503140355,0.163589,61129.0,61125.0,0.163598]
[1728503140591,0.00173447,61128.0,61125.0,0.163598]
[1728503140788,0.16532647,61128.0,61124.0,0.1646]
[1728503141051,0.163595,61127.0,61124.0,0.1636]
[1728503141271,0.163595,61127.0,61122.0,0.106634]
[1728503141272,0.163604,61123.0,61122.0,0.101634]
[1728503141501,0.32617611,61123.0,61122.0,0.101634]
[1728503141744,0.32444164,61123.0,61122.0,0.101634]
[1728503141957,0.37493479,61123.0,61122.0,0.101634]
[1728503142471,0.37493479,61123.0,61117.0,0.001636]
[1728503142472,0.163617,61118.0,61117.0,0.001636]
[1728503142695,0.51746821,61118.0,61117.0,0.001636]
[1728503142942,0.69113374,61118.0,61117.0,0.001636]
[1728503143178,0.69113374,61118.0,61099.0,0.24522827]
[1728503143179,0.3549151,61111.0,61099.0,0.24522827]
[1728503143402,0.51575274,61111.0,61099.0,0.24522827]
[1728503144763,0.54139233,61111.0,61099.0,0.24522827]
[1728503145007,0.55239233,61111.0,61110.0,0.001818]
[1728503145676,0.55839233,61111.0,61110.0,0.002818]
[1728503147046,0.1,61110.0,61096.0,0.24522827]
[1728503147278,0.163674,61097.0,61096.0,0.24522827]
[1728503147498,0.16540847,61097.0,61096.0,0.24522827]
[1728503147983,0.491029,61096.0,61089.0,0.163693]
[1728503148223,0.3549611,61094.0,61090.0,0.16369]
[1728503148464,0.3549611,61094.0,61088.0,0.002]
[1728503148465,0.16542147,61093.0,61088.0,0.002]
[1728503148700,0.16542147,61093.0,61089.0,0.163693]
[1728503149004,0.163687,61093.0,61089.0,0.163693]
[1728503149246,0.1912791,61094.0,61091.0,0.163689]
[1728503149482,0.163686,61093.0,61092.0,0.24522827]
[1728503149731,0.001,61096.0,61095.0,0.170679]
[1728503149969,0.16538947,61105.0,61102.0,0.002]
[1728503150187,0.00173447,61105.0,61098.0,0.002]
[1728503150413,0.163658,61103.0,61100.0,0.163665]
[1728503150649,0.5185811,61106.0,61099.0,0.002]
[1728503150890,0.00173447,61105.0,61099.0,0.329335]
[1728503151101,0.163658,61103.0,61099.0,0.165666]
[1728503151333,0.163661,61102.0,61101.0,0.002]
[1728503151550,0.163661,61102.0,61099.0,0.163666]
[1728503152236,0.163661,61102.0,61100.0,0.002]
[1728503152693,0.163654,61105.0,61100.0,0.002]
[1728503152922,0.00173447,61104.0,61102.0,0.002]
[1728503153140,0.163656,61104.0,61102.0,0.002]
[1728503153589,0.00173447,61105.0,61103.0,0.163656]
[1728503153836,0.00173447,61105.0,61102.0,0.163658]
[1728503154269,0.16538747,61105.0,61102.0,0.163658]
[1728503154483,0.002,61104.0,61102.0,0.163658]
[1728503155569,0.002,61104.0,61103.0,0.163658]
[1728503155782,0.002,61104.0,61103.0,0.165658]
[1728503156003,0.00173447,61105.0,61104.0,0.002]
[1728503156217,0.00173447,61105.0,61103.0,0.163658]
[1728503156478,0.002,61104.0,61103.0,0.165658]
[1728503157125,0.004,61104.0,61103.0,0.165658]
[1728503157378,0.002,61104.0,61103.0,0.165658]
[1728503157588,0.002,61104.0,61103.0,0.001638]
[1728503157806,0.006,61104.0,61103.0,0.001638]
[1728503158023,0.002,61104.0,61103.0,0.001638]
[1728503158262,0.002,61104.0,61103.0,0.165296]
[1728503158473,0.00173447,61105.0,61103.0,0.166296]
[1728503158730,0.00173447,61105.0,61103.0,0.167296]
[1728503159176,0.00173447,61105.0,61103.0,0.003638]
[1728503159301,0.00173447,61105.0,61103.0,0.002638]
[1728503159521,0.00173447,61105.0,61103.0,0.329954]
[1728503159738,0.163653,61105.0,61103.0,0.002638]
[1728503159964,0.163653,61105.0,61103.0,0.001638]
[1728503160174,0.00173447,61107.0,61103.0,0.001638]
[1728503160378,0.00173447,61107.0,61103.0,0.002638]
[1728503160584,0.16365,61106.0,61103.0,0.002638]
[1728503160780,0.00173447,61105.0,61103.0,0.002638]
[1728503163025,0.16538747,61105.0,61103.0,0.003638]
[1728503163226,0.163655,61104.0,61103.0,0.003638]
[1728503163560,0.16538947,61104.0,61103.0,0.001638]
[1728503163796,0.16538947,61104.0,61103.0,0.002638]
[1728503164159,0.16538947,61104.0,61103.0,0.001638]
[1728503164388,0.16538947,61104.0,61103.0,0.002638]
[1728503164588,0.16538947,61104.0,61103.0,0.001638]
[1728503164966,0.17138947,61104.0,61103.0,0.002638]
[1728503165632,0.17638947,61104.0,61103.0,0.003638]
[1728503166141,0.17138947,61104.0,61103.0,0.002638]
[1728503166376,0.17538947,61104.0,61103.0,0.002638]
[1728503167465,0.16938947,61104.0,61103.0,0.001638]
[1728503167704,0.17438947,61104.0,61103.0,0.001638]
[1728503171019,0.36566857,61104.0,61103.0,0.001638]
[1728503171251,0.3639341,61104.0,61103.0,0.001638]
[1728503171784,0.3599341,61104.0,61103.0,0.001638]
[1728503172252,0.3609341,61104.0,61103.0,0.001638]
[1728503172700,0.3599341,61104.0,61103.0,0.001638]
[1728503173146,0.3559341,61104.0,61103.0,0.001638]
[1728503173383,0.3569341,61104.0,61103.0,0.001638]
[1728503173844,0.3559341,61104.0,61103.0,0.001638]
[1728503174100,0.3559341,61104.0,61103.0,0.002638]
[1728503174391,0.3549341,61104.0,61103.0,0.001638]
[1728503174859,0.3549341,61104.0,61103.0,0.002638]
[1728503175317,0.1912791,61104.0,61103.0,0.002638]
[1728503175541,0.3549341,61104.0,61103.0,0.002638]
[1728503175779,0.1912791,61104.0,61103.0,0.001638]
[1728503176017,0.35666857,61104.0,61103.0,0.001638]
[1728503176213,0.3549341,61104.0,61103.0,0.001638]
[1728503177345,0.1912791,61104.0,61103.0,0.001638]
[1728503177565,0.40767109,61104.0,61103.0,0.001638]
[1728503177783,0.40593662,61104.0,61103.0,0.001638]
[1728503178434,0.1912791,61104.0,61103.0,0.001638]
[1728503178674,0.3549341,61104.0,61103.0,0.001638]
[1728503181083,0.1912791,61104.0,61103.0,0.001638]
[1728503181321,0.35666857,61104.0,61103.0,0.001638]
[1728503181536,0.3549341,61104.0,61103.0,0.001638]
[1728503183221,0.3579341,61104.0,61103.0,0.001638]
[1728503184841,0.41201615,61104.0,61103.0,0.001638]
[1728503185289,0.3609341,61104.0,61103.0,0.001638]
[1728503185510,0.1972791,61104.0,61103.0,0.001638]
[1728503185730,0.169655,61104.0,61103.0,0.001638]
[1728503185961,0.17138947,61104.0,61103.0,0.001638]
[1728503186393,0.00773447,61104.0,61103.0,0.001638]
[1728503186636,0.17138947,61104.0,61103.0,0.001638]
[1728503186851,0.17138947,61104.0,61103.0,0.003638]
[1728503187381,0.17138947,61104.0,61103.0,0.001638]
[1728503188228,0.00773447,61104.0,61103.0,0.001638]
[1728503188460,0.169655,61104.0,61103.0,0.001638]
[1728503188683,0.17138947,61104.0,61103.0,0.001638]
[1728503189595,0.22245489,61104.0,61103.0,0.001638]
[1728503191221,0.05879989,61104.0,61103.0,0.001638]
[1728503191465,0.05706542,61104.0,61103.0,0.001638]
[1728503191715,0.22072042,61104.0,61103.0,0.001638]
[1728503191949,0.22245489,61104.0,61103.0,0.001638]
[1728503193973,0.05879989,61104.0,61103.0,0.001638]
[1728503194199,0.22072042,61104.0,61103.0,0.001638]
[1728503194462,0.22245489,61104.0,61103.0,0.001638]
[1728503203415,0.05879989,61104.0,61103.0,0.001638]
[1728503204095,0.22245489,61104.0,61103.0,0.001638]
[1728503206432,0.05879989,61104.0,61103.0,0.001638]
[1728503206647,0.22245489,61104.0,61103.0,0.001638]
[1728503210304,0.05879989,61104.0,61103.0,0.165296]
[1728503210531,0.22245489,61104.0,61103.0,0.001638]
[1728503211448,0.05879989,61104.0,61103.0,0.001638]
[1728503211677,0.22245489,61104.0,61103.0,0.001638]
[1728503212371,0.05879989,61104.0,61103.0,0.001638]
[1728503212603,0.22245489,61104.0,61103.0,0.001638]
[1728503212847,0.05879989,61104.0,61103.0,0.001638]
[1728503213075,0.22245489,61104.0,61103.0,0.001638]
[1728503214004,0.05879989,61104.0,61103.0,0.001638]
[1728503214236,0.46149253,61104.0,61103.0,0.001638]
[1728503214467,0.58236715,61104.0,61103.0,0.001638]
[1728503214938,0.65675806,61104.0,61103.0,0.001638]
[1728503215818,0.65375806,61104.0,61103.0,0.001638]
[1728503216035,0.65075806,61104.0,61103.0,0.001638]
[1728503216267,0.81456467,61104.0,61103.0,0.001638]
[1728503216481,1.01824962,61104.0,61103.0,0.002638]
[1728503216703,1.10324962,61104.0,61103.0,0.001638]
[1728503216919,1.11724962,61104.0,61103.0,0.002638]
[1728503218534,1.13124962,61104.0,61103.0,0.002638]
[1728503219675,0.99059462,61104.0,61095.0,0.00397352]
[1728503219929,0.73056095,61096.0,61095.0,0.00397352]
[1728503220156,1.08941576,61096.0,61095.0,0.00397352]
[1728503220413,0.94246401,61096.0,61095.0,0.00397352]
[1728503220644,0.96546401,61096.0,61095.0,0.00397352]
[1728503220875,0.96546401,61096.0,61095.0,0.00497352]
[1728503221112,1.12627062,61096.0,61095.0,0.00497352]
[1728503221567,1.13227062,61096.0,61095.0,0.00497352]
[1728503221900,1.12627062,61096.0,61095.0,0.00497352]
[1728503222136,1.12627062,61096.0,61095.0,0.00397352]
[1728503222137,1.14027062,61096.0,61095.0,0.00397352]
[1728503222364,1.15427062,61096.0,61095.0,0.00397352]
[1728503223060,1.12627062,61096.0,61095.0,0.00397352]
[1728503223307,1.14027062,61096.0,61095.0,0.00397352]
[1728503223774,1.12627062,61096.0,61095.0,0.00397352]
[1728503224053,0.37557906,61096.0,61095.0,0.00397352]
[1728503224279,0.38957906,61096.0,61095.0,0.00397352]
[1728503224545,0.06506542,61096.0,61095.0,0.00397352]
[1728503224782,0.39254459,61096.0,61095.0,0.00397352]
[1728503225030,0.32784559,61096.0,61095.0,0.00397352]
[1728503225262,0.25438855,61096.0,61095.0,0.00397352]
[1728503225633,0.24447589,61096.0,61095.0,0.00397352]